Cogmind - Beta 17 @@@ ROGUE MODE // 2026.07.15 @ 21:20:51 Player: Cracklepappy Result: Destroyed by S-27 Virus with Autogun Performance ------------- Evolutions (5) 2500 Regions Visited (16) 3200 Robots Destroyed (106) 530 Value Destroyed (5352) 5352 Prototype IDs (42) 840 Alien Tech Used (0) 0 Bonus (15254) 15254 TOTAL SCORE: 27676 Bonus ------- High Alert Combat Kills 1154 Follower Combat Kills 734 Prayed to X0-1V1 5000 Major X0-1V1 Interference 5250 Awakened Behemoth Slayer 1000 Entered Garrisons 400 Used RIF Installer 500 Registered with UFD 300 Met Optimus in HQ 500 Met Imprinter 300 Destroyed Z-Imprinter 1000 Friendly Fire -884 Cogmind --------- Core Integrity 0/1150 Matter 210/300 Energy 100/100 System Corruption 22% Temperature Cool (0) Movement Flying (45) Location -5/Garrison Parts ------- > --- POWER (2) -------- (None) > --- PROPULSION (5) --- Impulse Thruster Array > --- UTILITY (8) ------ (None) > --- WEAPON (2) ------- Companion Sword > --- INVENTORY (6) ---- Zionite Metafield Generator Graphene Brace Advanced Component Analysis Suite Hacking Drone Bay (1/1) LU-1G1's Laser Shovel CR-A16's Behemoth Slayer Peak State ------------ > --- POWER ------------ Assembled Flux Generator > --- PROPULSION ------- Zionite Composite Leg I Enhanced Flexi-carbon Leg Enhanced Flexi-carbon Leg Assembled Alloy Leg Assembled Alloy Leg > --- UTILITY ---------- Improved Cooling System Large Storage Unit Assembled Biocell Array Zionite Weapon Casing Improved Thermal Shield GOLEM Unit X0-1V1's Piety Tracker > --- WEAPON ----------- Assembled Focal Cannon Companion Sword > --- INVENTORY -------- Improved Coolant Injector Large Storage Unit Zionite Biocell Zionite Biocell Zionite Metafield Generator Deep Structural Scanner Surveybot 24 Chip Zionite Weapon Casing Shock Absorption System Force Field A0-MCA's Component Scanner Hacking Drone Bay Master Drone Bay Heavy Rocket Launcher LU-1G1's Laser Shovel CR-A16's Behemoth Slayer [Rating: 135] Favorites ----------- Power Cold Fusion Reactor Engine Light Angular Momentum Engine Power Core Nuclear Core Reactor Cold Fusion Reactor Propulsion Assembled Alloy Leg Treads Heavy Treads Leg Assembled Alloy Leg Wheel Wheel Flight Unit Flight Unit Utility X0-1V1's Piety Tracker Device X0-1V1's Piety Tracker Storage Large Storage Unit Processor Enhanced Optical Array Protection Zionite Weapon Casing Weapon Companion Sword Energy Gun EM Shotgun Energy Cannon Assembled Focal Cannon Ballistic Gun Light Assault Rifle Launcher Heavy Rocket Launcher Special Weapon Mining Laser Slashing Weapon Companion Sword Piercing Weapon CR-A16's Pointy Stick Special Melee Weapon Improved Datajack Build | -11 -10 -10 -9 -9 -9 -9 -6 -6 -6 -6 -6 -5 -5 -5 -5 -5 ------- Run | Yrd Mat Min Mat Sto Rec Scr Fac Low Low Zio Dee Pro Fac Gar Fac Gar Slots Evolved 10 | . . . 2 . . . 6 . . . . . 2 . . . Power . | . . . . . . . . . . . . . . . . . Propulsion 3 | . . . 2 . . . 1 . . . . . . . . . Utility 7 | . . . . . . . 5 . . . . . 2 . . . Weapon . | . . . . . . . . . . . . . . . . . Parts Attached 156 | 6 14 3 5 . 2 11 34 6 5 5 25 2 3 2 11 22 Power 15 | . 1 1 1 . 1 2 7 . 1 . 1 . . . . . Engine 9 | . 1 . 1 . 1 1 4 . 1 . . . . . . . Core 4 | . . 1 . . . 1 2 . . . . . . . . . Reactor 2 | . . . . . . . 1 . . . 1 . . . . . Propulsion 51 | 3 5 . 2 . . 5 12 1 2 1 4 . . 1 6 9 Treads 12 | 2 2 . . . . 1 . . 2 . . . . . . 5 Leg 31 | . . . . . . 4 12 1 . . 4 . . 1 6 3 Wheel 2 | 1 . . . . . . . . . 1 . . . . . . Hover . | . . . . . . . . . . . . . . . . . Flight 6 | . 3 . 2 . . . . . . . . . . . . 1 Utility 70 | 2 4 2 . . 1 1 14 4 2 3 16 2 3 1 5 10 Device 31 | 2 2 1 . . 1 . 10 3 . 1 3 1 1 1 1 4 Storage 6 | . 1 1 . . . 1 1 . . . 1 . 1 . . . Processor 3 | . . . . . . . 1 . . . . . . . . 2 Hackware . | . . . . . . . . . . . . . . . . . Protection 30 | . 1 . . . . . 2 1 2 2 12 1 1 . 4 4 Artifact . | . . . . . . . . . . . . . . . . . Weapon 20 | 1 4 . 2 . . 3 1 1 . 1 4 . . . . 3 Energy Gun 4 | 1 2 . 1 . . . . . . . . . . . . . Energy Cannon 1 | . . . . . . . . . . . 1 . . . . . Ballistic Gun 3 | . 1 . . . . . . . . . . . . . . 2 Ballistic Cannon . | . . . . . . . . . . . . . . . . . Launcher 3 | . . . 1 . . . 1 . . . 1 . . . . . Special Weapon 4 | . 1 . . . . 1 . . . 1 1 . . . . . Impact Weapon . | . . . . . . . . . . . . . . . . . Slashing Weapon 2 | . . . . . . 1 . 1 . . . . . . . . Piercing Weapon 2 | . . . . . . . . . . . 1 . . . . 1 Special Melee Weapon 1 | . . . . . . 1 . . . . . . . . . . Unidentified Prototypes 16 | . 1 1 . . . 2 1 . . 2 9 . . . . . Parts Lost 65 | . . . 7 2 . . 10 3 1 . 9 3 . . 5 25 Power 8 | . . . 2 1 . . 2 . . . 2 . . . . 1 Propulsion 23 | . . . 4 1 . . 4 1 . . 3 . . . 1 9 Utility 30 | . . . 1 . . . 4 2 1 . 4 3 . . 4 11 Weapon 4 | . . . . . . . . . . . . . . . . 4 Highest Loss Streak 21 | . . . 3 2 . . 6 2 1 . 5 2 . . 3 21 To Critical Strikes . | . . . . . . . . . . . . . . . . . Average Backups 13 | 4 6 5 5 6 6 11 15 16 15 16 14 14 14 15 15 14 Power . | . . . . . . . . . . . . . . . . . Propulsion . | 1 2 1 . . . . . 2 1 1 . . . . . 1 Utility 7 | . 2 2 2 2 2 5 6 8 9 9 9 12 12 12 11 8 Weapon 3 | 1 1 1 2 3 4 4 4 3 3 3 3 1 1 2 2 2 Tool/Special . | . . . . . . . . . . . . . . . . . Unused Backups 53 | . 4 . 1 1 . 12 6 . 4 . 4 2 . 4 5 10 Power 2 | . . . . . . . . . . . . . . . 1 1 Propulsion 4 | . 2 . . . . . . . 1 . . . . . . 1 Utility 26 | . 2 . 1 1 . 5 1 . . . 3 . . 2 4 7 Weapon 19 | . . . . . . 6 4 . 3 . 1 2 . 2 . 1 Tool/Special 2 | . . . . . . 1 1 . . . . . . . . . Average Slot Usage (%) 78 | . 88 97 77 45 33 63 85 98 98 82 76 80 87 88 84 73 Engine 3 | . 6 14 15 17 11 6 3 . 3 6 1 . . . . . Core 2 | . . 4 3 . . 4 4 6 2 . . . . . . . Reactor 3 | . . . . . . . 1 6 6 6 8 6 5 5 5 4 Treads 4 | . 14 . . . . 7 . . . 13 7 . . . . 8 Leg 17 | . . . . . . 12 28 32 31 6 12 33 29 29 28 12 Flight 1 | . 14 28 26 6 . . . . . . . . . . . . Device 16 | . 18 23 20 11 18 14 25 25 17 13 9 13 18 17 16 10 Storage 7 | . 9 4 . . . 7 6 6 6 6 6 6 10 11 11 10 Processor 1 | . . . . . . . 2 6 6 2 . . . . . 2 Protection 5 | . . . . . . . 4 3 7 12 15 5 9 11 8 8 Energy Gun 1 | . 17 13 10 11 3 . . . . . . . . . . . Energy Cannon 1 | . . . . . . . . . . . 1 . 4 5 5 4 Slashing Weapon 7 | . . . . . . 9 5 7 13 12 7 6 5 5 4 4 Peak Build Rating 135 | 7 20 26 25 9 20 38 78 81 88 94 120 119 135 134 135 134 Average Rating 71 | 2 8 22 21 7 15 29 64 76 78 89 95 117 133 130 128 108 On Entrance 63 | . 7 20 23 9 7 18 38 76 77 88 90 118 119 134 128 134 Avg Prop Armor Cover (%) 10 | 33 29 . . . . 12 . . 4 3 1 . . . . 10 Naked Turns . | . . . . . . . . . . . . . . . . . Heaviest Build 109 | 3 12 32 12 11 10 32 70 60 62 75 78 77 93 98 109 105 Greatest Support 158 | 20 52 14 21 11 9 53 97 81 140 140 140 140 140 140 127 158 Greatest Overweight (x) 11 | . 1 3 . 1 1 2 1 . . . 11 . . 1 1 1 Average Overweight (x) . | . . . . . . . . . . . . . . . . . Largest Inventory Capacity 16 | 5 8 15 15 6 6 16 16 16 16 16 16 16 16 16 16 16 Average Capacity 14 | 5 7 8 5 6 6 12 16 16 16 16 16 16 16 16 16 15 Most Carried 16 | 5 8 6 6 6 6 16 16 16 16 16 16 16 16 16 16 16 Average Carried 13 | 4 6 5 5 5 6 12 15 15 15 15 15 14 15 15 15 15 Final Capacity 16 | 5 5 15 6 6 6 16 16 16 16 16 16 16 16 16 16 6 Final Carried 16 | 5 5 6 6 6 6 16 16 16 16 16 16 12 16 16 16 6 Class Distribution -------------------- 50% | Mutant 23% | Scavenger-Mutant 12% | Commander-Mutant 4% | Scavenger-Golem 4% | Commander-Golem 4% | Golem Dominant Class ---------------- Mutant | -10/Materials Scavenger-Mutant | -10/Mines Mutant | -9/Materials Mutant | -9/Storage Mutant | -9/Recycling Mutant | -9/Scraptown Scavenger-Mutant | -6/Factory Scavenger-Mutant | -6/Lower Caves Commander-Mutant | -6/Lower Caves Commander-Mutant | -6/Zion Mutant | -6/Deep Caves Mutant | -5/Proximity Caves Scavenger-Golem | -5/Factory Golem | -5/Garrison Commander-Golem | -5/Factory Scavenger-Mutant | -5/Garrison Resources | -11 -10 -10 -9 -9 -9 -9 -6 -6 -6 -6 -6 -5 -5 -5 -5 -5 ----------- Run | Yrd Mat Min Mat Sto Rec Scr Fac Low Low Zio Dee Pro Fac Gar Fac Gar Matter Collected 3960 | 260 361 161 60 . . 145 632 642 86 109 588 87 46 54 321 408 Remotely . | . . . . . . . . . . . . . . . . . Salvage Created 5295 | 120 204 24 228 60 . . 1248 504 38 . 557 362 198 439 384 929 Parts 276 | 14 10 1 17 2 . . 56 26 7 . 22 24 13 18 24 42 Haulers Intercepted 6 | . 1 . 3 1 . . 1 . . . . . . . . . Recyclers Shooed 5 | . . . . . . . 3 . . . . . . . 2 . Parts Field Recycled . | . . . . . . . . . . . . . . . . . Retrieved Matter . | . . . . . . . . . . . . . . . . . Parts Self-Destructed 51 | . . . . . . . . 17 10 . . 24 . . . . Prevented . | . . . . . . . . . . . . . . . . . Parts Restored . | . . . . . . . . . . . . . . . . . Kills | -11 -10 -10 -9 -9 -9 -9 -6 -6 -6 -6 -6 -5 -5 -5 -5 -5 ------- Run | Yrd Mat Min Mat Sto Rec Scr Fac Low Low Zio Dee Pro Fac Gar Fac Gar Combat Hostiles Destroyed 82 | . 6 . 3 . . . 11 7 3 . 11 6 5 . 13 17 Melee 33 | . . . . . . . 6 7 3 . . 5 2 . 4 6 Guns 10 | . 5 . 3 . . . . . . . . . . . . 2 Cannons 9 | . . . . . . . . . . . . . 3 . 4 2 AOE 26 | . . . . . . . 5 . . . 10 . . . 5 6 Classes Destroyed 21 | 2 3 1 . . . . 3 4 . . 3 2 1 . . 2 Worker 10 | . . 1 . . . . 8 . . . . . . . 1 . Builder 1 | . . . . . . . 1 . . . . . . . . . Tunneler 4 | 3 . . . . . . 1 . . . . . . . . . Hauler 6 | . 1 . 3 1 . . 1 . . . . . . . . . Recycler 5 | 1 . . . . . . 4 . . . . . . . . . Minesweeper 1 | . . . . . . . . 1 . . . . . . . . Drone 2 | . . . . . . . . . . . . 1 . . 1 . Watcher 1 | . . . . . . . . . . . . . 1 . . . Swarmer 24 | . 3 . 3 . . . 4 3 3 . . . 4 . 4 . Cutter 1 | . . . . . . . . . . . . . . . . 1 Grunt 20 | . 3 . . . . . 4 2 . . . 3 . . . 8 Duelist 1 | . . . . . . . . 1 . . . . . . . . Sentry 3 | . . . . . . . . 1 . . . . . . . 2 Specialist 1 | . . . . . . . . . . . . . . . . 1 Hunter 6 | . . . . . . . 2 . . . . . . . 3 1 Programmer 12 | . . . . . . . 2 . . . . 1 1 . 5 3 Behemoth 2 | . . . . . . . . . . . . 1 . . . 1 Enhanced Grunt 2 | . . . . . . . . . . . 2 . . . . . Z-Light 5 | . . . . . . . . . . . 5 . . . . . Decomposer 2 | . . . . . . . . 2 . . . . . . . . Samaritan 3 | . . . . . . . . 3 . . . . . . . . Assembled 5 | . . . . . . . . . . . 5 . . . . . Golem 1 | . . . . . . . . . . . 1 . . . . . Best Kill Streak 12 | 4 2 1 3 1 . . 12 3 3 . 5 2 4 . 7 7 Combat Bots Only 7 | . 2 . 3 . . . 5 3 3 . 5 2 4 . 6 7 Max Kills in Single Turn 3 | 1 1 1 1 1 . . 3 1 1 . 3 1 1 . 2 2 Gunslinging . | . . . . . . . . . . . . . . . . . Exploded 3 | . . . . . . . 2 . . . 3 . . . 2 2 Melee 1 | . . . . . . . 1 1 1 . . 1 1 . 1 1 Uniques/NPCs Destroyed 1 | . . . . . . . . . . . 1 . . . . . Z-Imprinter (-6/Deep Caves) Combat | -11 -10 -10 -9 -9 -9 -9 -6 -6 -6 -6 -6 -5 -5 -5 -5 -5 -------- Run | Yrd Mat Min Mat Sto Rec Scr Fac Low Low Zio Dee Pro Fac Gar Fac Gar Hostile Shots Fired 1179 | . 46 2 58 23 . . 181 99 38 . 84 73 39 . 190 346 Missed 344 | . 15 . 34 10 . . 48 26 13 . 13 16 10 . 56 103 Hits 835 | . 31 2 24 13 . . 133 73 25 . 71 57 29 . 134 243 Melee 7 | . . . . . . . . 2 . . . . . . . 5 Projectile 828 | . 31 2 24 13 . . 133 71 25 . 71 57 29 . 134 238 AOE 2 | . . . . . . . . . . . . . . . . 2 Critical Strikes 23 | . 1 . . . . . 6 . . . . 4 . . 6 6 Part Disruptions 1 | . . . . . . . . . . . . . . . 1 . Damage Taken 16144 | . 421 28 295 173 . . 1982 675 132 . 3212 1171 474 . 2597 4984 Core 2534 | . 85 . 48 59 . . 363 76 28 . 641 78 52 . 313 791 Absorbed by Shields 1327 | . . . . . . . 248 380 134 . . . . . 565 . Redirected to Shielding 803 | . . . . . . . . . . . 562 58 38 . 20 125 Ignored by Resistances 2 | . . . . . . . . . 2 . . . . . . . Core Remaining (%) 65 | 100 . 82 . . . 57 . . . . . 21 . . . . Volleys Fired 196 | 26 44 1 17 2 . . 6 . . . 28 . 4 10 17 41 Largest 2 | 1 2 1 1 1 . . 1 . . . 1 . 1 1 1 1 Hottest 100 | 40 100 45 45 45 . . 33 . . . 75 . 25 25 39 40 Shots Fired 224 | 26 74 1 17 2 . . 6 . . . 28 . 4 11 17 38 Gun 121 | 26 61 1 17 2 . . . . . . . . . . . 14 Cannon 59 | . . . . . . . . . . . 15 . 4 11 13 16 Launcher 30 | . . . . . . . 6 . . . 12 . . . 4 8 Special 14 | . 13 . . . . . . . . . 1 . . . . . Kinetic 15 | . 1 . . . . . . . . . . . . . . 14 Thermal 143 | 26 73 . . . . . . . . . . . 4 11 13 16 Explosive 30 | . . . . . . . 6 . . . 12 . . . 4 8 Electromagnetic 35 | . . 1 17 2 . . . . . . 15 . . . . . Robot Hit Streak 8 | 6 8 2 4 4 . . 1 . . . 4 . 5 . 4 8 Robot Miss Streak 6 | 4 2 . 6 . . . 3 . . . 4 . . 1 1 2 Penetration Max . | . . . . . . . . . . . . . . . . . Secondary Targets 1 | . 1 . . . . . . . . . . . . . . . Max Gunslinging Chain 1 | . 1 . . . . . . . . . . . . . . . Shots Hit Robots 335 | 15 46 1 10 2 . 6 57 27 8 . 28 19 9 18 37 52 Core Hits 198 | 5 11 1 11 2 . . 36 13 4 . 26 11 6 11 25 36 Critical Kills 1 | . . . . . . . . . . . . . . . . 1 Critical Parts Destroyed 2 | . . . . . . . . . . . . . . . . 2 Critical Strikes 17 | . 3 . . . . . 4 . . . 1 2 2 . . 5 Burn 3 | . 3 . . . . . . . . . . . . . . . Destroy 3 | . . . . . . . . . . . . . . . . 3 Corrupt 1 | . . . . . . . . . . . 1 . . . . . Melee Attacks 298 | . . . . . . 8 76 39 16 1 16 28 17 19 31 47 Impact . | . . . . . . . . . . . . . . . . . Slashing 283 | . . . . . . 2 76 39 16 1 16 20 17 19 31 46 Piercing 9 | . . . . . . . . . . . . 8 . . . 1 Sneak Attacks 41 | . . . . . . 6 19 6 . . 2 1 . . 5 2 Combat Hostiles 2 | . . . . . . . . . . . . 1 . . 1 . Follow-up Attacks 12 | . . . . . . . . 3 2 . . 4 1 . 1 1 Damage Inflicted 16588 | 165 543 10 129 31 1 . 3618 1353 285 . 2108 719 353 1847 2415 3011 Guns 1001 | 165 541 10 129 31 . . . . . . . . . . . 125 Cannons 1071 | . . . . . . . . . . . 188 . 142 . 459 282 Explosions 4070 | . . . . . . . 644 . . . 1173 . . 246 872 1135 Melee 10443 | . . . . . . . 2974 1353 285 . 747 719 211 1601 1084 1469 Ramming 3 | . 2 . . . 1 . . . . . . . . . . . Kinetic 125 | . . . . . . . . . . . . . . . . 125 Thermal 1589 | 165 541 . . . . . . . . . . . 142 . 459 282 Explosive 4070 | . . . . . . . 644 . . . 1173 . . 246 872 1135 Electromagnetic 358 | . . 10 129 31 . . . . . . 188 . . . . . Impact . | . . . . . . . . . . . . . . . . . Slashing 10283 | . . . . . . . 2974 1353 285 . 747 559 211 1601 1084 1469 Piercing 160 | . . . . . . . . . . . . 160 . . . . Highest Corruption 22 | . . . . . . . 2 2 1 1 . 13 1 1 10 22 Average Corruption 5 | . . . . . . . 1 2 1 1 . 13 1 1 2 15 Corruption Purged . | . . . . . . . . . . . . . . . . . Corruption Blocked . | . . . . . . . . . . . . . . . . . Effects 73 | . . . . . . . 2 . 4 1 . 13 1 6 6 40 Message Errors 16 | . . . . . . . . . 1 . . 3 . 1 2 9 Matter Fused 24 | . . . . . . . 1 . 1 1 . 4 . 2 3 12 Heat Flow Errors 5 | . . . . . . . . . . . . 1 1 . . 3 Energy Discharges 15 | . . . . . . . 1 . 1 . . 2 . 3 1 7 Data Loss (minor) 6 | . . . . . . . . . 1 . . 2 . . . 3 Data Loss (major) 2 | . . . . . . . . . . . . . . . . 2 Alerts 1 | . . . . . . . . . . . . 1 . . . . Weapon Failures 4 | . . . . . . . . . . . . . . . . 4 Overload Shots . | . . . . . . . . . . . . . . . . . Overflow Damage 1281 | . . . . . . . 456 142 11 . 136 . 20 311 166 39 Projectiles 59 | . . . . . . . . . . . . . 20 . 39 . Explosions 67 | . . . . . . . . . . . 35 . . . 32 . Melee 1155 | . . . . . . . 456 142 11 . 101 . . 311 95 39 Knockbacks . | . . . . . . . . . . . . . . . . . Impact . | . . . . . . . . . . . . . . . . . Kinetic . | . . . . . . . . . . . . . . . . . Secondary . | . . . . . . . . . . . . . . . . . Self-Inflicted Damage 156 | . . . . . . . . . . . 6 . . . 125 25 Shots 7 | . . . . . . . . . . . 1 . . . 4 2 Rammed 5 | . 4 . . . 1 . . . . . . . . . . . Targets Rammed 5 | . 4 . . . 1 . . . . . . . . . . . Kicked . | . . . . . . . . . . . . . . . . . Crushed . | . . . . . . . . . . . . . . . . . Highest Temperature 489 | . 225 10 57 18 . . 28 . . . 489 407 . . . 317 Average Temperature 96 | . 52 5 19 9 . . 7 . . . 203 183 . . . 107 Received Heat Transfer 3404 | . 180 15 114 69 . . 538 112 . . 453 912 . . 78 933 Effects 1 | . . . . . . . . . . . 1 . . . . . Matter Decay 1 | . . . . . . . . . . . 1 . . . . . Siege Activations . | . . . . . . . . . . . . . . . . . Martial Activations . | . . . . . . . . . . . . . . . . . Shielding Activations . | . . . . . . . . . . . . . . . . . Robots Disrupted 3 | . . . . . . . 1 1 1 . . . . . . . Combat Hostiles 2 | . . . . . . . . 1 1 . . . . . . . Robots Corrupted 1 | . . . . . . . . . . . 1 . . . . . Combat Hostiles 1 | . . . . . . . . . . . 1 . . . . . Parts Fried . | . . . . . . . . . . . . . . . . . Impact Corruptions . | . . . . . . . . . . . . . . . . . Robots Melted 1 | . 1 . . . . . . . . . . . . . . . Combat Hostiles 1 | . 1 . . . . . . . . . . . . . . . Parts Melted 4 | . 4 . . . . . . . . . . . . . . . Heat Transferred 2520 | 375 1720 . . . . . . . . . . . 100 . 175 150 Parts Sabotaged . | . . . . . . . . . . . . . . . . . Parts Stolen . | . . . . . . . . . . . . . . . . . Parts Stripped . | . . . . . . . . . . . . . . . . . Power Chain Reactions 1 | . . . . . . . . . . . . . . . 1 . Alert | -11 -10 -10 -9 -9 -9 -9 -6 -6 -6 -6 -6 -5 -5 -5 -5 -5 ------- Run | Yrd Mat Min Mat Sto Rec Scr Fac Low Low Zio Dee Pro Fac Gar Fac Gar Maximum Alert Level 4 | . . . 1 . . . 1 . . . . . . 4 4 4 Low Security (%) 53 | 100 100 100 76 100 100 . 79 . . . . . 100 3 . . Level 1 7 | . . . 24 . . . 20 . . . . . . 5 5 . Level 2 12 | . . . . . . . . . . . . . . 41 48 . Level 3 9 | . . . . . . . . . . . . . . 37 11 9 Level 4 17 | . . . . . . . . . . . . . . 11 33 90 Level 5 . | . . . . . . . . . . . . . . . . . High Security . | . . . . . . . . . . . . . . . . . Max Security . | . . . . . . . . . . . . . . . . . Peak Influence 1541 | 10 102 71 274 116 30 . 326 . . . . . 127 1101 1541 1442 Initial 1073 | . . 31 . 109 26 . . . . . . . . 81 577 1073 Average 416 | 1 44 18 122 94 10 . 120 . . . . . 23 686 833 1238 Influence Increases 5214 | 20 377 65 381 10 30 . 578 199 60 . . 150 157 1020 1578 589 Destroy 0b10 Robot/C 1880 | . 120 . 60 . . . 260 140 60 . . 120 100 . 620 400 Destroy 0b10 Robot/NC 250 | 20 5 5 15 5 . . 85 5 . . . . 5 30 70 5 Destroy Leader 354 | . 32 . 16 2 . . 66 20 . . . 30 22 . 126 40 Allied During Kill 404 | . . . . . . . 22 4 . . . . . 18 352 8 Successful Hack 94 | . 30 . 20 3 . . . . . . . . . 14 27 . Select Force Hacks 140 | . 60 . . . 30 . . . . . . . . . 50 . Disable Machine 240 | . . . . . . . 60 . . . . . . 15 135 30 Anti-Garrison Action 750 | . . . . . . . . . . . . . . 700 . 50 Destroy Structure 547 | . 10 . . . . . 55 . . . . . . 243 198 41 Partial Spotted 45 | . 30 . 15 . . . . . . . . . . . . . Lose Combat Pursuer 510 | . 90 60 255 . . . 30 30 . . . . 30 . . 15 Influence Decreases 3822 | 20 297 145 120 202 89 10 479 221 137 . . 150 40 36 1146 730 Entered New Map 1326 | . . 49 . 152 43 10 . 37 15 . . . . 36 524 460 Time Decay 1614 | 20 277 96 60 30 46 . 379 162 112 . . 130 40 . 262 . Lost Part 512 | . . . 60 20 . . 80 22 10 . . 20 . . 50 250 Lost Ally 220 | . 20 . . . . . 20 . . . . . . . 160 20 Purge Threat 150 | . . . . . . . . . . . . . . . 150 . Squads Dispatched 22 | . 4 1 2 . . . 9 . . . . . . . 6 . Investigation 10 | . 4 1 . . . . 2 . . . . . . . 3 . Extermination 4 | . . . . . . . 3 . . . . . . . 1 . Reinforcement 7 | . . . 2 . . . 4 . . . . . . . 1 . Assault 1 | . . . . . . . . . . . . . . . 1 . Garrison . | . . . . . . . . . . . . . . . . . Intercept . | . . . . . . . . . . . . . . . . . Searches Triggered . | . . . . . . . . . . . . . . . . . Construction Impeded 1 | . . . . . . . 1 . . . . . . . . . Haulers Reinforced 1 | . . . . . . . 1 . . . . . . . . . Active Scanning Responses . | . . . . . . . . . . . . . . . . . Cargo Convoy Interrupts . | . . . . . . . . . . . . . . . . . Stealth | -11 -10 -10 -9 -9 -9 -9 -6 -6 -6 -6 -6 -5 -5 -5 -5 -5 --------- Run | Yrd Mat Min Mat Sto Rec Scr Fac Low Low Zio Dee Pro Fac Gar Fac Gar Distress Signals 7 | . 2 . 3 . . . . . . . . . . . 2 . Communications Jammed . | . . . . . . . . . . . . . . . . . Distress Signals . | . . . . . . . . . . . . . . . . . Times Spotted 209 | . 23 4 34 6 . 4 31 15 7 . 13 6 9 . 24 33 Peak Tracking Total 16 | . 4 4 16 6 . 4 6 5 3 . 6 4 6 . 7 10 Tactical Retreats 18 | . 6 1 5 . . . 2 2 . . . . 1 . . 1 Traps | -11 -10 -10 -9 -9 -9 -9 -6 -6 -6 -6 -6 -5 -5 -5 -5 -5 ------- Run | Yrd Mat Min Mat Sto Rec Scr Fac Low Low Zio Dee Pro Fac Gar Fac Gar Traps Triggered 4 | . 2 . . . . . . . . . . . . 2 . . Indirectly . | . . . . . . . . . . . . . . . . . Trap Hack Attempts . | . . . . . . . . . . . . . . . . . Triggered . | . . . . . . . . . . . . . . . . . Disarmed . | . . . . . . . . . . . . . . . . . Reprogrammed . | . . . . . . . . . . . . . . . . . Reused . | . . . . . . . . . . . . . . . . . Traps Extracted 1 | . . . . . . . . . . . 1 . . . . . Installed 1 | . . . . . . . . . . . 1 . . . . . Triggered . | . . . . . . . . . . . . . . . . . Most Traps Carried 3 | . . . . . . 3 3 3 3 3 3 . . . . . Machines | -11 -10 -10 -9 -9 -9 -9 -6 -6 -6 -6 -6 -5 -5 -5 -5 -5 ---------- Run | Yrd Mat Min Mat Sto Rec Scr Fac Low Low Zio Dee Pro Fac Gar Fac Gar Machines Disabled 33 | . . . . . . 2 4 . 1 3 2 . . 9 9 3 Max in Single Turn 4 | . . . . . . 1 4 . 1 1 1 . . 2 1 1 Garrison Relay 4 | . . . . . . . . . . . . . . 3 . 1 Phase Generator 1 | . . . . . . . . . . . . . . 1 . . Machines Repaired . | . . . . . . . . . . . . . . . . . Machines Dismantled . | . . . . . . . . . . . . . . . . . Machines Sabotaged . | . . . . . . . . . . . . . . . . . Overloaded Fab Kills . | . . . . . . . . . . . . . . . . . Hacking | -11 -10 -10 -9 -9 -9 -9 -6 -6 -6 -6 -6 -5 -5 -5 -5 -5 --------- Run | Yrd Mat Min Mat Sto Rec Scr Fac Low Low Zio Dee Pro Fac Gar Fac Gar Machines Accessed 46 | . 10 1 6 2 3 6 6 1 . . . . 3 3 5 . Terminals 24 | . 7 . 4 2 2 . 2 . . . . . 2 3 2 . Fabricators 2 | . . . . . . . . . . . . . . . 2 . Repair Stations 2 | . 1 . 1 . . . . . . . . . . . . . Recycling Units 6 | . 2 . . . 1 . 3 . . . . . . . . . Scanalyzers 2 | . . . 1 . . . 1 . . . . . . . . . Garrison Access 2 | . . . . . . . . . . . . . 1 . 1 . Total Hacks 133 | . 31 1 13 2 6 42 15 1 . . . . 6 5 11 . Successful 87 | . 19 1 6 2 2 42 4 1 . . . . 3 2 5 . Failed 44 | . 11 . 6 . 4 . 11 . . . . . 3 3 6 . Catastrophic 13 | . . . 2 . 3 . 2 . . . . . 2 3 1 . Database Lockouts 2 | . 1 . 1 . . . . . . . . . . . . . Manual 43 | . 20 . 5 2 1 . 2 . . 1 . . 5 1 6 . Terminals 55 | . 25 . 10 2 3 . 3 . . . . . 4 5 3 . Fabricators 7 | . . . . . . . . . . . . . . . 7 . Repair Stations 4 | . 3 . 1 . . . . . . . . . . . . . Recycling Units 15 | . 3 . . . 3 . 9 . . . . . . . . . Scanalyzers 5 | . . . 2 . . . 3 . . . . . . . . . Garrison Access 3 | . . . . . . . . . . . . . 2 . 1 . Terminal Hacks 60 | . 6 1 3 1 . 42 1 1 . . . . 2 1 2 . Record 40 | . . . . . . 40 . . . . . . . . . . Robot Schematic 1 | . 1 . . . . . . . . . . . . . . . Prototype ID Bank 4 | . 2 . 1 . . . 1 . . . . . . . . . Open Door 3 | . . 1 . . . 1 . 1 . . . . . . . . Branch Access Points 2 | . . . . . . . . . . . . . 1 . 1 . Emergency Access Points 1 | . . . . . . . . . . . . . . 1 . . Terminal Index 1 | . 1 . . . . . . . . . . . . . . . Unreport Threat 2 | . . . . . . . . . . . . . 1 . 1 . Locate Traps 2 | . 1 . . 1 . . . . . . . . . . . . Hauler Manifests 2 | . 1 . 1 . . . . . . . . . . . . . Registered Components 1 | . . . 1 . . . . . . . . . . . . . Proto ID Catalog 1 | . . . . . . 1 . . . . . . . . . . Fabricator Hacks 1 | . . . . . . . . . . . . . . . 1 . Network Status 1 | . . . . . . . . . . . . . . . 1 . Repair Station Hacks 1 | . . . 1 . . . . . . . . . . . . . Refit 1 | . . . 1 . . . . . . . . . . . . . Recycling Unit Hacks 4 | . 1 . . . 1 . 2 . . . . . . . . . Retrieve Components 4 | . 1 . . . 1 . 2 . . . . . . . . . Scanalyzer 1 | . . . 1 . . . . . . . . . . . . . Retrieve Study 1 | . . . 1 . . . . . . . . . . . . . Garrison Access Hacks 2 | . . . . . . . . . . . . . 1 . 1 . Unlock Access 2 | . . . . . . . . . . . . . 1 . 1 . Unauthorized Hacks 18 | . 12 . 1 1 1 . 1 . . . . . . 1 1 . Terminals 13 | . 10 . 1 1 . . . . . . . . . 1 . . Assimilate 5 | . 4 . 1 . . . . . . . . . . . . . Botnet 1 | . . . . 1 . . . . . . . . . . . . Operators 1 | . 1 . . . . . . . . . . . . . . . Skim 5 | . 5 . . . . . . . . . . . . . . . Override 1 | . . . . . . . . . . . . . . 1 . . Fabricators 1 | . . . . . . . . . . . . . . . 1 . Overload 1 | . . . . . . . . . . . . . . . 1 . Repair Stations . | . . . . . . . . . . . . . . . . . Recycling Units 4 | . 2 . . . 1 . 1 . . . . . . . . . Tunnel 3 | . 2 . . . 1 . . . . . . . . . . . Fedlink 1 | . . . . . . . 1 . . . . . . . . . Scanalyzers . | . . . . . . . . . . . . . . . . . Garrison Access . | . . . . . . . . . . . . . . . . . Data Cores Recovered . | . . . . . . . . . . . . . . . . . Used . | . . . . . . . . . . . . . . . . . Hacking Detections 33 | . 8 . 4 2 3 . 6 . . . . . 3 3 4 . Full Trace Events 4 | . 1 . . . . . 1 . . . . . . 1 1 . Feedback Events . | . . . . . . . . . . . . . . . . . Feedback Blocked . | . . . . . . . . . . . . . . . . . Robot Schematics Acquired 5 | . 1 . . . . . . . . 4 . . . . . . Robots Built . | . . . . . . . . . . . . . . . . . Authchips . | . . . . . . . . . . . . . . . . . Time . | . . . . . . . . . . . . . . . . . Total Robot Build Rating . | . . . . . . . . . . . . . . . . . Part Schematics Acquired 14 | . . . . . . . . . . 14 . . . . . . Parts Built . | . . . . . . . . . . . . . . . . . Authchips . | . . . . . . . . . . . . . . . . . Time . | . . . . . . . . . . . . . . . . . Total Part Build Rating . | . . . . . . . . . . . . . . . . . Part Studies Acquired 1 | . . . 1 . . . . . . . . . . . . . Parts Repaired . | . . . . . . . . . . . . . . . . . Time . | . . . . . . . . . . . . . . . . . Parts Recycled . | . . . . . . . . . . . . . . . . . Recycled Matter . | . . . . . . . . . . . . . . . . . Retrieved Matter . | . . . . . . . . . . . . . . . . . Retrieved Components 9 | . 4 . . . 1 . 4 . . . . . . . . . Parts Scanalyzed . | . . . . . . . . . . . . . . . . . Part Schematics Acquired . | . . . . . . . . . . . . . . . . . Parts Damaged . | . . . . . . . . . . . . . . . . . Bothacking | -11 -10 -10 -9 -9 -9 -9 -6 -6 -6 -6 -6 -5 -5 -5 -5 -5 ------------ Run | Yrd Mat Min Mat Sto Rec Scr Fac Low Low Zio Dee Pro Fac Gar Fac Gar Used RIF Installer 1 | . . . . . . . . . . . . . . 1 . . Alert ID Control 1 | . . . . . . . . . . . . . . 1 . . Robots Hacked 6 | . . . . . . 6 . . . . . . . . . . Non-combat 2 | . . . . . . 2 . . . . . . . . . . Combat 4 | . . . . . . 4 . . . . . . . . . . Robot Hacks Applied 6 | . . . . . . 6 . . . . . . . . . . parse_system 6 | . . . . . . 6 . . . . . . . . . . Relay Couplers Released 14 | . . . . . . . . . . . . . . 10 . 4 Machine Destruction 14 | . . . . . . . . . . . . . . 10 . 4 Fabnet Peak Effective % . | . . . . . . . . . . . . . . . . . Robots Rewired 13 | . . . . . . . . 1 5 . . . . 7 . . Allies Hacked . | . . . . . . . . . . . . . . . . . Hacks Repelled . | . . . . . . . . . . . . . . . . . Allies | -11 -10 -10 -9 -9 -9 -9 -6 -6 -6 -6 -6 -5 -5 -5 -5 -5 -------- Run | Yrd Mat Min Mat Sto Rec Scr Fac Low Low Zio Dee Pro Fac Gar Fac Gar Total Allies 23 | . 2 . . . . . 2 1 5 2 . . . 10 . 1 Largest Group 10 | . 1 . . . . . 1 1 5 7 7 . . 10 10 1 Highest-Rated Group 662 | . 10 . . . . . 79 25 158 350 350 . . 662 662 49 Highest-Rated Ally 148 | . 10 . . . . . 79 25 39 96 96 . . 148 148 49 Initial UFD Resources 36 | . . . . . . . 22 32 32 32 32 36 36 36 36 36 Total Orders 3 | . . . . . . . . . . . 2 . . . 1 . STAY 1 | . . . . . . . . . . . 1 . . . . . FOLLOW 1 | . . . . . . . . . . . 1 . . . . . RETURN 1 | . . . . . . . . . . . . . . . 1 . Ally Attacks 184 | . . . . . . . 12 . . . 59 . . . 103 10 Total Damage 6154 | . . . . . . . 617 . . . 1189 . . . 4121 227 Kills 43 | . . . . . . . 3 . . . 6 . . . 31 3 Allies Corrupted 2 | . . . . . . . . . . . . . . . 2 . Allies Melted 6 | . . . . . . 4 . . . . . . . . 2 . X0-1V1 Amusement Gains 221 | . 11 . 10 . . 95 . 10 . . . . . 30 35 30 Good Acts 50 | . . 2 4 2 2 1 17 3 5 . . 5 4 3 1 1 Bad Acts 38 | . . 4 3 2 . . 1 4 . . . 3 1 6 8 6 Intel | -11 -10 -10 -9 -9 -9 -9 -6 -6 -6 -6 -6 -5 -5 -5 -5 -5 ------- Run | Yrd Mat Min Mat Sto Rec Scr Fac Low Low Zio Dee Pro Fac Gar Fac Gar Active Infowar (turns) 4243 | 4 344 . . . . . 711 945 739 1228 272 . . . . . Optics 2953 | . . . . . . . 711 945 739 558 . . . . . . Terrain 229 | 2 227 . . . . . . . . . . . . . . . Structural 2227 | . . . . . . . . 355 372 1228 272 . . . . . Seismic 1056 | 4 344 . . . . . 383 325 . . . . . . . . Cloaking 50 | . . . . . . . 50 . . . . . . . . . Robot Analysis Total . | . . . . . . . . . . . . . . . . . Derelict Logs Recovered 7 | . . 1 . . . . . 2 1 2 . 1 . . . . Drone Launches 5 | . . . . . . . . . . . 3 . . . 1 1 Drone Recoveries 1 | . . . . . . . . . . . . . . . 1 . Exploration | -11 -10 -10 -9 -9 -9 -9 -6 -6 -6 -6 -6 -5 -5 -5 -5 -5 ------------- Run | Yrd Mat Min Mat Sto Rec Scr Fac Low Low Zio Dee Pro Fac Gar Fac Gar Turns Passed 14862 | 123 729 377 175 63 193 3635 1460 945 739 1228 1661 753 338 1070 572 801 Spaces Moved 11083 | 106 1001 581 341 98 326 2851 965 707 541 738 869 419 211 685 338 306 Core 2172 | 104 272 . . 31 326 1433 . . . . 6 . . . . . Treads 1663 | 2 45 . . . . 305 . . 26 738 522 . . . . 25 Legs 5573 | . . . . . . 1113 965 707 515 . 341 419 211 685 338 279 Wheels . | . . . . . . . . . . . . . . . . . Hover . | . . . . . . . . . . . . . . . . . Flight 1675 | . 684 581 341 67 . . . . . . . . . . . 2 Fastest Speed 34 | 50 37 37 34 40 50 50 114 115 116 160 125 130 130 125 120 45 Average Speed 111 | 52 49 54 35 58 57 112 121 115 118 160 164 130 130 130 125 170 Slowest Speed 600 | 160 160 277 40 100 100 260 190 116 160 160 600 130 130 192 180 190 Overloaded Moves . | . . . . . . . . . . . . . . . . . Propulsion Burnouts . | . . . . . . . . . . . . . . . . . Robots Hopped 28 | . 11 4 13 . . . . . . . . . . . . . Potential Cave-ins 1 | . . . . . . 1 . . . . . . . . . . Cave-ins Triggered . | . . . . . . . . . . . . . . . . . Exploration Rate (%) 53 | 4 97 81 47 32 42 90 25 78 64 85 61 52 8 98 16 33 Regions Visited 16 Branch Regions 9 Pre-discovered Areas 14 | . 3 1 . . 1 6 . . 1 1 . 1 . . . . Known Exits Taken 11 | . 1 1 1 1 1 1 1 1 . . . 1 1 . 1 . Unknown Exits Taken 4 | 1 . . . . . . . . 1 1 1 . . . . . Scrap Searched 13 | . . 1 . . . 5 . 2 2 3 . . . . . . Spaces Dug 37 | . 9 . . . . 15 5 . 1 . . . . . 1 6 Terrain Destroyed 364 | . 11 . . . . 12 48 . 1 . 63 . . 191 30 8 Melee 6 | . . . . . . . 5 . 1 . . . . . . . Projectile 25 | . 11 . . . . . . . . . . . . 2 4 8 AOE 321 | . . . . . . . 43 . . . 63 . . 189 26 . Terrain Rammed . | . . . . . . . . . . . . . . . . . Walls Destroyed . | . . . . . . . . . . . . . . . . . Machines Disabled . | . . . . . . . . . . . . . . . . . Actions | -11 -10 -10 -9 -9 -9 -9 -6 -6 -6 -6 -6 -5 -5 -5 -5 -5 --------- Run | Yrd Mat Min Mat Sto Rec Scr Fac Low Low Zio Dee Pro Fac Gar Fac Gar Total 12907 | 145 1118 635 361 101 331 3275 1143 779 625 781 1049 589 246 823 429 477 Wait 799 | . 38 46 4 . 1 359 17 25 5 22 60 136 5 43 6 32 Move 11014 | 105 978 572 315 97 325 2850 964 706 540 737 868 418 211 684 338 306 Hop 27 | . 11 4 12 . . . . . . . . . . . . . Pick Up 121 | 6 11 4 3 1 . 27 12 1 10 3 15 2 4 5 7 10 Fast Attach 67 | 6 2 1 3 . 2 6 15 3 1 2 7 2 . . 6 11 Attach 36 | . 3 . 1 . . 2 3 1 4 1 6 4 1 . . 10 Detach 6 | . 1 . . . . . 1 . 1 . . 1 1 . . 1 Swap 119 | . 15 4 3 . . 5 25 4 4 9 26 . 3 4 10 7 Drop 140 | 2 11 3 3 1 2 18 23 1 9 6 22 3 1 7 15 13 Fire 196 | 26 44 1 17 2 . . 6 . . . 28 . 4 10 17 41 Melee 280 | . . . . . . 8 76 32 13 1 16 23 16 19 30 46 Ram 1 | . . . . . 1 . . . . . . . . . . . Kick . | . . . . . . . . . . . . . . . . . Crush 4 | . 4 . . . . . . . . . . . . . . . Escape Stasis . | . . . . . . . . . . . . . . . . . Rewire 96 | . . . . . . . 1 6 38 . . . . 51 . . Trap 1 | . . . . . . . . . . . 1 . . . . . Miscellaneous . | . . . . . . . . . . . . . . . . . Route ------- -11/Scrapyard -10/Materials (discovered 6 exits: *Mat x3 / *Min x2 / *Sub) -10/Mines (discovered 2 exits: *Mat / [*Exi]) -9/Materials (discovered 4 exits: Mat / [*Min x2] / *Sto) -9/Storage -9/Recycling (discovered 2 exits: Fac / *Scr) -9/Scraptown (discovered 2 exits: *Fac x2) -6/Factory (discovered 4 exits: *Fac x2 / *Low x2) -6/Lower Caves -6/Lower Caves (discovered 2 exits: *Fac / *Zio) -6/Zion (discovered 2 exits: [*Dee] / [*Pro]) -6/Deep Caves -5/Proximity Caves -5/Factory (discovered 6 exits: Fac / Upp x2 / Ext x2 / Gar) -5/Garrison (discovered 3 exits: *Fac x3) -5/Factory (discovered 6 exits: *Fac / Upp x2 / Ext x2 / Gar) -5/Garrison History --------- Turn | Location | Event 12 | -11/Scrapyard | Discovered new exit (range 14) 124 | -11/Scrapyard | Entered Materials 184 | -10/Materials | Discovered new exit (range 8) 311 | -10/Materials | Build established: Mutant 564 | -10/Materials | Discovered new exit (range 16) 592 | -10/Materials | Discovered new exit (range 10) 624 | -10/Materials | Derelicts attacked the area 659 | -10/Materials | Discovered new exit (range 12) 662 | -10/Materials | Central database locked down 714 | -10/Materials | Identified exit to Materials 756 | -10/Materials | Learned Storage emergency access door positions 789 | -10/Materials | Learned location of 1 exit from Recycling 810 | -10/Materials | Learned Recycling recycling unit intel 819 | -10/Materials | Identified exit to Mines 819 | -10/Materials | Identified exit to Subcaves 820 | -10/Materials | Learned location of 1 exit from Storage 838 | -10/Materials | Prayed at D.C.S.S. Altar Unit 850 | -10/Materials | Learned Storage stockpile data 853 | -10/Materials | Entered Mines 882 | -10/Mines | Found the Drone Emporium 883 | -10/Mines | Found Prototype Device 883 | -10/Mines | Identified Thief Drone Bay 915 | -10/Mines | Melee accuracy permanently improved by X0-1V1 (+5%; -50 max core) 954 | -10/Mines | Discovered exit to Materials (range 5) 961 | -10/Mines | Learned location of Storage (-9) 968 | -10/Mines | Found a hidden stash of uninstalled traps 983 | -10/Mines | Build established: Scavenger-Mutant 1000 | -10/Mines | Received a Rocket Launcher from a helpful Derelict 1038 | -10/Mines | Deemed a non-threat by the Exiles lab entrance 1038 | -10/Mines | Discovered new exit (range 5) 1049 | -10/Mines | X0-1V1 mutated your Weapon slot to Power slot 1230 | -10/Mines | Entered Materials 1230 | -9/Materials | Evolved 2 slots: Propulsion x2 1231 | -9/Materials | Identified exit to Storage 1233 | -9/Materials | Discovered new exit (range 10) 1234 | -9/Materials | Identified exit to Materials 1234 | -9/Materials | X0-1V1 revealed exit location to -8/Materials 1281 | -9/Materials | Inventory capacity permanently improved by X0-1V1 (+1; -100 max core) 1289 | -9/Materials | Central database locked down 1350 | -9/Materials | Discovered new exit (range 10) 1405 | -9/Materials | Entered Storage 1406 | -9/Storage | Identified exit to Recycling 1415 | -9/Storage | X0-1V1 vaporized surrounding terrain (radius 16) 1434 | -9/Storage | Lost 3 parts (2n1u) 1465 | -9/Storage | Used back door to open Recycling access 1468 | -9/Storage | Entered Recycling 1469 | -9/Recycling | Identified exit to Factory 1470 | -9/Recycling | Loaded intel: 6 recycling unit locations 1527 | -9/Recycling | Identified exit to Scraptown 1527 | -9/Recycling | X0-1V1 revealed exit location to -9/Scraptown 1539 | -9/Recycling | Build established: Mutant 1574 | -9/Recycling | X0-1V1 activates XOMVISION 1649 | -9/Recycling | Scanned before Scraplab entrance 1656 | -9/Recycling | Entered Scraplab 1661 | -9/Recycling | Entered Scraptown 1737 | -9/Scraptown | Discovered new exit (range 13) 1771 | -9/Scraptown | Visited The Evicted 1772 | -9/Scraptown | Heard Great Nut preacher, LISTEN AND RECITE! 1779 | -9/Scraptown | Visited Awakened 1782 | -9/Scraptown | Visited Red Mages 1806 | -9/Scraptown | Visited Spacefarers 1826 | -9/Scraptown | Visited TADAMA 1902 | -9/Scraptown | Visited Cyclists 1917 | -9/Scraptown | Visited UFD Registry 1917 | -9/Scraptown | Registered with UFD as "Flashface" 1930 | -9/Scraptown | Entered Cyclist Reading Room 1932 | -9/Scraptown | Learned location of Zion (-6) 1983 | -9/Scraptown | Visited Curators Association 1991 | -9/Scraptown | Visited Scrapoid Pod Storage 1999 | -9/Scraptown | Visited Sword Containment 2004 | -9/Scraptown | Found Prototype Slashing Weapon 2004 | -9/Scraptown | Identified Companion Sword 2028 | -9/Scraptown | Visited Research Penetration Think Tank 2050 | -9/Scraptown | Visited LU-1G1's Boring Crew 2185 | -9/Scraptown | Visited Science Guys 2221 | -9/Scraptown | Visited A0-MCA Data Center 2239 | -9/Scraptown | Visited Supply Room 2311 | -9/Scraptown | Visited Cartography Club 2393 | -9/Scraptown | Learned location of Recycling (-9) 2393 | -9/Scraptown | Learned location of Archives (-5) 2393 | -9/Scraptown | Learned 12 Materials zone layouts 2393 | -9/Scraptown | Learned 16 Materials zone layouts 2393 | -9/Scraptown | Learned 12 Factory zone layouts 2393 | -9/Scraptown | Learned 20 Factory zone layouts 2393 | -9/Scraptown | Learned 8 Research zone layouts 2393 | -9/Scraptown | Learned 4 Access zone layouts 2393 | -9/Scraptown | Learned 16 Lower Caves zone layouts 2393 | -9/Scraptown | Learned 16 Upper Caves zone layouts 2393 | -9/Scraptown | Learned 20 Upper Caves zone layouts 2393 | -9/Scraptown | Learned 4 Armory zone layouts 2393 | -9/Scraptown | Learned location of 2 exits from Research 2393 | -9/Scraptown | Learned location of 1 exit from Upper Caves 2393 | -9/Scraptown | Learned location of 1 exit from Proximity Caves 2393 | -9/Scraptown | Identified exit to Factory 2450 | -9/Scraptown | Found Deep Structural Scanner 3831 | -9/Scraptown | Given a B rating by A0-MCA 4110 | -9/Scraptown | Found A0-MCA's Component Scanner 4767 | -9/Scraptown | Met Optimus 4767 | -9/Scraptown | Accepted into 0bPrime 5167 | -9/Scraptown | Civil war broke out across Scraptown 5174 | -9/Scraptown | Found Prototype Special Weapon 5178 | -9/Scraptown | Identified LU-1G1's Laser Shovel 5191 | -9/Scraptown | X0-1V1 activates XOMVISION 5203 | -9/Scraptown | Found Master Drone Bay 5271 | -9/Scraptown | Found Deep Structural Scanner 5294 | -9/Scraptown | Lost 8 allies 5296 | -9/Scraptown | Entered Factory 5296 | -6/Factory | Evolved 6 slots: Propulsion x1, Utility x5 5297 | -6/Factory | Identified exit to Lower Caves 5297 | -6/Factory | Identified exit to Factory 5401 | -6/Factory | Discovered exit to Factory (range 15) 5744 | -6/Factory | X0-1V1 sent you into danger 5748 | -6/Factory | X0-1V1 sent allied Chaos Knight 2.0 (x1) 5763 | -6/Factory | Spotted B-75 Beast 5807 | -6/Factory | Weapon slot count temporarily expanded by X0-1V1 (+3) 5878 | -6/Factory | X0-1V1 downgraded hostiles (x1) 5916 | -6/Factory | Lost 6 parts (1p3n2u) 5981 | -6/Factory | X0-1V1 revealed exit location to -6/Lower Caves 6044 | -6/Factory | Build established: Scavenger-Mutant 6140 | -6/Factory | Core integrity restored by X0-1V1 (+161) 6539 | -6/Factory | X0-1V1 turns hostiles against one another 6659 | -6/Factory | Core integrity permanently improved by X0-1V1 (+300) 6677 | -6/Factory | Loaded intel: 8 recycling unit locations 6756 | -6/Factory | Entered Lower Caves 6757 | -6/Lower Caves | Identified exit to Lower Caves 6795 | -6/Lower Caves | Found Scimitar of Distortion 7021 | -6/Lower Caves | Attracted the attention of an 0b10 checkpoint 7145 | -6/Lower Caves | X0-1V1 whisked you away to safety 7333 | -6/Lower Caves | Learned Factory terminal intel 7438 | -6/Lower Caves | X0-1V1 mutated your Utility slot to Weapon slot 7701 | -6/Lower Caves | Entered another Lower Caves area 7749 | -6/Lower Caves | Discovered exit to Factory (range 11) 7761 | -6/Lower Caves | X0-1V1 downgraded hostiles (x3) 7918 | -6/Lower Caves | Attacked by a delusional Derelict stockpiling Unaware 7997 | -6/Lower Caves | Core integrity restored by X0-1V1 (+240) 8253 | -6/Lower Caves | Build established: Commander-Mutant 8253 | -6/Lower Caves | Encountered a Warlord checkpoint 8313 | -6/Lower Caves | Discovered new exit (range 18) 8440 | -6/Lower Caves | Entered Zion 8440 | -6/Zion | Accompanied by 5 allies 8469 | -6/Zion | Given the Hacking Drone Bay 8469 | -6/Zion | Found Prototype Device 8469 | -6/Zion | Identified Hacking Drone Bay 8535 | -6/Zion | Discovered new exit (range 20) 8615 | -6/Zion | System corruption cleaned by Quarantine Array 8822 | -6/Zion | Given A8's code to call for help 8859 | -6/Zion | Found CR-A16's Pointy Stick 9054 | -6/Zion | Found Prototype Special Weapon 9054 | -6/Zion | Identified RU-N14's Throwing Claymores 9128 | -6/Zion | Learned Factory emergency access door positions 9227 | -6/Zion | Turned away by Imprinter 9615 | -6/Zion | Enhanced Grunt warped into view, answering call for help 9617 | -6/Zion | Enhanced Grunt warped into view, answering call for help 9631 | -6/Zion | Discovered new exit (range 7) 9637 | -6/Zion | Saw the warning signs outside the Deep Caves entrance 9668 | -6/Zion | Entered Deep Caves 9668 | -6/Deep Caves | Accompanied by 7 allies 9836 | -6/Deep Caves | Attacked by Z-Imprinter 9846 | -6/Deep Caves | Attached CPS modules to Z-Imprinter 9883 | -6/Deep Caves | Lost 5 allies 9902 | -6/Deep Caves | Found Prototype Device 9902 | -6/Deep Caves | Identified Zio. Metafield Generator 9914 | -6/Deep Caves | Found Prototype Protection 9914 | -6/Deep Caves | Identified Zio. Weapon Casing 9917 | -6/Deep Caves | Found Zio. Weapon Casing 9930 | -6/Deep Caves | Found Zio. Weapon Casing 10036 | -6/Deep Caves | Z-Facility disabled 10085 | -6/Deep Caves | Found Prototype Protection 10085 | -6/Deep Caves | Identified Zio. Heavy Carapace 10090 | -6/Deep Caves | Found Zio. Weapon Casing 10120 | -6/Deep Caves | Found Zio. Weapon Casing 10144 | -6/Deep Caves | Found Zio. Weapon Casing 10149 | -6/Deep Caves | Found Zio. Weapon Casing 10167 | -6/Deep Caves | Build established: Mutant 10463 | -6/Deep Caves | Discovered new exit (range 7) 10557 | -6/Deep Caves | Spotted Golem 10619 | -6/Deep Caves | Lost 3 allies 10659 | -6/Deep Caves | Lost 5 parts (2p3u) 10684 | -6/Deep Caves | Core integrity fell below 50% 10699 | -6/Deep Caves | Destroyed Golem 10706 | -6/Deep Caves | Found GOLEM Unit 10717 | -6/Deep Caves | Lost 4 parts (3n1u) 11002 | -6/Deep Caves | Found Zio. Heavy Carapace 11027 | -6/Deep Caves | Found Zio. Heavy Carapace 11248 | -6/Deep Caves | Found Surveybot 24 Chip 11329 | -6/Deep Caves | Entered Proximity Caves 11646 | -5/Proximity Caves | Received a Behemoth hack from an annoying Tinkerer 11753 | -5/Proximity Caves | System corruption reached 10% 11836 | -5/Proximity Caves | Adv. Hardlight Generator reconfigured into Item Mimic 11942 | -5/Proximity Caves | Spotted B-75 Beast 11977 | -5/Proximity Caves | Revealed the true nature of CR-A16's Pointy Stick 11980 | -5/Proximity Caves | Destroyed B-75 Beast 12082 | -5/Proximity Caves | Entered Factory 12082 | -5/Factory | Evolved 2 slots: Utility x2 12084 | -5/Factory | Loaded intel: 25 terminal locations 12164 | -5/Factory | Identified exit to Factory 12164 | -5/Factory | X0-1V1 revealed exit location to -4/Factory 12256 | -5/Factory | X0-1V1 released a cloud of subatomizers 12302 | -5/Factory | Identified exit to Upper Caves 12302 | -5/Factory | Identified exit to Extension 12373 | -5/Factory | Build established: Scavenger-Golem 12420 | -5/Factory | Identified exit to Garrison 12420 | -5/Factory | Entered Garrison 12420 | -5/Garrison | Discovered recently destroyed garrison 12458 | -5/Garrison | Phase Generator disabled 12506 | -5/Garrison | Garrison Relay disabled 12524 | -5/Garrison | Rescued a captive Derelict 12547 | -5/Garrison | Found embedded Infiltrators 12670 | -5/Garrison | Identified exit to Factory 12795 | -5/Garrison | Installed Relay Interface Framework 12906 | -5/Garrison | Rewired Executioner 12966 | -5/Garrison | Garrison Relay disabled 13043 | -5/Garrison | Build established: Golem 13057 | -5/Garrison | Expanded RIF knowledge: Alert ID Control 13202 | -5/Garrison | Rewired B-90 Cyclops 13267 | -5/Garrison | Garrison Relay disabled 13472 | -5/Garrison | X0-1V1 vaporized surrounding terrain (radius 21) 13480 | -5/Garrison | Build established: Commander-Golem 13490 | -5/Garrison | Entered Factory 13490 | -5/Factory | Accompanied by 10 allies 13642 | -5/Factory | Imp. Remote Shield reconfigured into Item Mimic 13667 | -5/Factory | Discovered exit to Factory (range 3) 13667 | -5/Factory | X0-1V1 sent you into danger 13710 | -5/Factory | Lost 3 parts (3u) 13790 | -5/Factory | First assault squad dispatched 13816 | -5/Factory | X0-1V1 vaporized surrounding terrain (radius 21) 13978 | -5/Factory | X0-1V1 sent hostile P-70 Sage (x3) 14020 | -5/Factory | System corruption reached 10% 14062 | -5/Factory | Identified exit to Garrison 14062 | -5/Factory | Entered Garrison 14164 | -5/Garrison | Lost 3 parts (1n2u) 14314 | -5/Garrison | Triggered checkpoint 14387 | -5/Garrison | Garrison Relay disabled 14642 | -5/Garrison | Spotted B-75 Beast 14677 | -5/Garrison | Destroyed B-75 Beast 14726 | -5/Garrison | X0-1V1 vaporized surrounding terrain (radius 23) 14729 | -5/Garrison | Triggered checkpoint 14733 | -5/Garrison | Triggered checkpoint 14758 | -5/Garrison | Core integrity fell below 50% 14760 | -5/Garrison | Triggered checkpoint 14777 | -5/Garrison | Destroyed 7 combat bots 14785 | -5/Garrison | Master Drone dominated Y-64 Sentinel 14816 | -5/Garrison | Core integrity fell below 20% 14840 | -5/Garrison | Triggered checkpoint 14863 | -5/Garrison | Destroyed by S-27 Virus with Autogun Last Messages --------------- 14822_ J:WSHCE#CFI:Y::=M0 YKAB 14822_ Acquired 63 matter. 14823_ The unstable cave ceiling collapses. X0-1V1's Piety Tracker suddenly appears amidst shimmering waves of color. 14827_ C-45 Heavy ARC bursts open, deploying its payload. 14827_ S-27 Virus unfolds itself. 14831_ Acquired Carbon-fiber Leg. 14832_ Carbon-fiber Leg destroyed. 14836_ Master Drone Bay destroyed. 14837_ Acquired Carbon-fiber Leg. 14838_ X0-1V1 connects you with a stream of twisted latent energy (+14 energy generation). 14852_ Master Drone emerges from the rubble. 14852_ >> Lost connection to Master Drone. 14853_ Carbon-fiber Leg destroyed. 14855_ System corrupted: Matter fused (-7). 14856_ S-27 Virus destroyed. 14857_ Carbon-fiber Leg destroyed. 14857_ Lrg. Storage Unit destroyed. 14863_ X0-1V1 howls with laughter! Map ----- +----------------------------------------------------+ | ?????????????????????????????????????????????????? | | ?????????????????????????????????????????????????? | | ?????????????????????????????????????????????????? | | ?????????????????????????????????????????????????? | | ?????????????????????????????????????????????????? | | ?????????????????????????????????????????????????? | | ???????????????????????????? ???????????????????? | | ???????????????????????????? ???????????????????? | | ?????????????????????? ???? #??????????????????? | | ??????????????????? ??? ?##? #??????????????????? | | ?????????????????# ### ##;# ## """## ?????????? | | ????????????????## """#;;; ?????????? | | ???????????????##" ????????? | | ??????????????? " ????????? | | ?????????????? """""";;;; ;" """ #???????? | | ?????????????? ;;; ""%" #???????? | | ????????????? ;C " " ???????? | | ????????????? ; "%" ??????? | | ???????????? ;C " ??????? | | ???????????? ;C *% #?????? | | ???????????? ; [ ""?????? | | ?????????? ! # ?????? | | ???????? #%!* "?????? | | ??????? ##!! s[ = ?????? | | ?????? ss# %%= "?????? | | ?????? @ * # #!% ????? | | ????? # %= # * ##??????? | | ????? s %![ #???????? | | ???? #!*=# # # # ??????? | | ???? # %## # ?????? | | ???? # = # " """?????? | | ???# # " ?????? | | ???# ;;;;;;;;;;;; ! # " """?????? | | ??# " ! " " ?????? | | ???# " %* " " " ?????? | | ???# " ;;;;;;;;""";;%"" " ""??????? | | ???# " ;; ;;;;;""";; "" " ??????? | | ???# " "; ;; " " ??????? | | ???# """"" "" ;; " " ???????? | | ???# " # # "" % [ [ " """"T???????? | | ???## " """ "" "" ! !" "????????? | | ???##""""#""" """"" ! " ????????? | | ???# " " = " ?????????? | | ???# " " * " ?????????? | | ???# """""""""" " " ??????????? | | ???# # " " " " ????????????? | | ???# ##" "? "[ " ??????????????? | | #### ##" #? """""""""""" ?????????????????? | | # #""""""" ???????????????????? | | #### #####""" """ ????????????????????????? | +----------------------------------------------------+ Best States ------------- Heat Dissipation 75 Coolant Potential 65 Energy Generation 45 Energy Capacity 2300 Matter Stores 900 Matter Capacity 900 Sight Range 27 Terrain Scan Range 16 Terrain Scan Density 10 Cloak Strength 2 Additional Mass Support 9 Armor Coverage 1600 Resistance: TH 25 Resistance: EM 15 Propulsion Shielding 33 Weapon Shielding 100 Weapon Cycling 25 Phase Shifting 5 Evasion (%) 70 Melee Accuracy 5 Recoil Reduction 5 Trap Extractor Capacity 6 Item Schematics ----------------- Imp. Trap Scanner | -6/Zion | Archive Disruptor Cannon | -6/Zion | Archive Focal Shield | -6/Zion | Archive Variable Charge Gun | -6/Zion | Archive Imp. Thermal Generator | -6/Zion | Archive Imp. Thermal Shield | -6/Zion | Archive Thermal Shield | -6/Zion | Archive Lgt. Antimatter Reactor | -6/Zion | Archive Adv. Reaction Control System | -6/Zion | Archive Imp. Arc Projector | -6/Zion | Archive Imp. Kinecellerator | -6/Zion | Archive Arm. Leg | -6/Zion | Archive Hvy. Machine Gun | -6/Zion | Archive Point Defense System | -6/Zion | Archive Robot Schematics ------------------ M-13 Machinist | -10/Materials | Hacked T-07 Excavator | -6/Zion | Archive Y-54 Guardian | -6/Zion | Archive S-27 Virus | -6/Zion | Archive Y-72 Warden | -6/Zion | Archive Fabricated ------------ Nothing Repaired ---------- Nothing Studied --------- Flight Unit | -9/Materials | Hacked Alien Tech Used ----------------- None Achievements -------------- The Robot, The Myth, The Legend Challenges ------------ None Game ------ Seed ColdCompanionMace Manual? 0 Play Time 02:37:54 Cumulative 1541.9 hours Start 2026.07.14 @ 00:27:32 End 2026.07.15 @ 21:20:51 Sessions 5 Manual Loads 0 Difficulty Rogue Special Mode None Game No. 680 Rogue 680 Adventurer 0 Explorer 0 Win Type - Total 32 Types 15/7/3/0/1/1/2/2/0/1 Lore% 94 Gallery% 87 Achievement% 76 Wizard Run 0 Options --------- Layout 0 ASCII 0 Keyboard 0 Movement Numpad Keybinds 0 Fullscreen 2 Font 24/Smallcaps Map View 76x50 Zoom Use 0% Tactical HUD 1 Map Filters NONE Filters NONE Steam 1 RUN: f5bf578a-91fa-4f48-9e36-6e7e5a7d2c33